Workbook

Sheet Inicio PR
A23: Descargue la versión Kindle
K32: Miguel Cervantes Jiménez

Sheet PREFREVCONM (hidden)
A1: PREFERENCIAS
A2: REVELADAS
B3: RECTA PRESUPUESTAL 1
B4: m | C4: p1 | D4: x1 | E4: p2 | F4: x2
B5: 100.0 | C5: 10.0 | D5: 2.0 | E5: 10.0 | F5: ='Oculto PR'!F27 -> 8.0
B6: Inserte los datos correspondientes
B7: PARÁMETROS DE LA RECTA PRESUPUESTAL 1
B8: x2 | C8: b0 | D8: -b1 | E8: x1
B9: ='Oculto PR'!B30 -> 8.0 | C9: ='Oculto PR'!C30 -> 10.0 | D9: ='Oculto PR'!D30 -> (1.0) | E9: ='Oculto PR'!E30 -> 2.0
B11: Máxima cantidad de x1 | D11: ='Oculto PR'!D32 -> 10.0
B12: Máxima cantidad de x2 | D12: ='Oculto PR'!D33 -> 10.0
B13: Precio relativo (<0) | D13: ='Oculto PR'!D34 -> (1.0)
B15: RECTA PRESUPUESTAL 2
B16: m | C16: p1 | D16: x1 | E16: p2 | F16: x2
B17: 100.0 | C17: 5.0 | D17: 8.0 | E17: 15.0 | F17: ='Oculto PR'!O27 -> 4.0
B18: Inserte los datos correspondientes
B19: PARÁMETROS DE LA RECTA PRESUPUESTAL 2
B20: x2 | C20: b0 | D20: -b1 | E20: x1
B21: ='Oculto PR'!K30 -> 4.0 | C21: ='Oculto PR'!L30 -> 6.7 | D21: ='Oculto PR'!M30 -> (0.3) | E21: ='Oculto PR'!N30 -> 8.0
B23: Máxima cantidad de x1 | D23: ='Oculto PR'!M32 -> 20.0
B24: Máxima cantidad de x2 | D24: ='Oculto PR'!M33 -> 6.7
B25: Precio relativo (<0) | D25: ='Oculto PR'!M34 -> (0.3)
B27: Títulos | E27: CANASTA 3
B28: Resultados | E28: x1 | F28: x2
B29: Insertar datos | E29: 5.0 | F29: 5.0

Sheet PREFREVSINM (hidden)
A1: PREFERENCIAS
A2: REVELADAS
B3: RECTA PRESUPUESTAL 1
B4: m | C4: p1 | D4: x1 | E4: p2 | F4: x2
B5: ='Oculto PR'!U27 -> 2,850.0 | C5: 90.0 | D5: 15.0 | E5: 50.0 | F5: 30.0
B6: Inserte los datos correspondientes
B7: PARÁMETROS DE LA RECTA PRESUPUESTAL 1
B8: x2 | C8: b0 | D8: -b1 | E8: x1
B9: ='Oculto PR'!U30 -> 30.0 | C9: ='Oculto PR'!V30 -> 57.0 | D9: ='Oculto PR'!W30 -> (1.8) | E9: ='Oculto PR'!X30 -> 15.0
B11: Máxima cantidad de x1 | D11: ='Oculto PR'!W32 -> 31.7
B12: Máxima cantidad de x2 | D12: ='Oculto PR'!W33 -> 57.0
B13: Precio relativo (<0) | D13: ='Oculto PR'!W34 -> (1.8)
B15: RECTA PRESUPUESTAL 2
B16: m | C16: p1 | D16: x1 | E16: p2 | F16: x2
B17: ='Oculto PR'!AD27 -> 2,630.0 | C17: 70.0 | D17: 19.0 | E17: 52.0 | F17: 25.0
B18: Inserte los datos correspondientes | E18: =B5/B17 -> 1.08365019
B19: PARÁMETROS DE LA RECTA PRESUPUESTAL 2
B20: x2 | C20: b0 | D20: -b1 | E20: x1
B21: ='Oculto PR'!AD30 -> 25.0 | C21: ='Oculto PR'!AE30 -> 50.6 | D21: ='Oculto PR'!AF30 -> (1.3) | E21: ='Oculto PR'!AG30 -> 19.0
B23: Máxima cantidad de x1 | D23: ='Oculto PR'!AF32 -> 37.6
B24: Máxima cantidad de x2 | D24: ='Oculto PR'!AF33 -> 50.6
B25: Precio relativo (<0) | D25: ='Oculto PR'!AF34 -> (1.3)
B27: Títulos | E27: CANASTA 3
B28: Resultados | E28: x1 | F28: x2
B29: Insertar datos | E29: 9.0 | F29: 41.0

Sheet INDPREC (hidden)
A1: ÍNDICES DE PRECIOS
C3: AÑOS BASE | E3: AÑO DE ESTUDIO | H3: ÍNDICE DE PRECIOS | I3: Indice
B4: Bienes | C4: p0 | D4: x0 | E4: p1 | F4: x1 | H4: Laspeyres | I4: ='Oculto PR'!AX3 -> 100.0
B5: 1 | C5: 10.0 | D5: 10.0 | E5: 10.0 | F5: 10.0 | H5: Paasche | I5: ='Oculto PR'!AX4 -> 100.0
B6: 2 | C6: 0 | D6: 0 | E6: 0 | F6: 0 | H6: Fisher | I6: ='Oculto PR'!AX5 -> 100.0
B7: 3 | C7: 0 | D7: 0 | E7: 0 | F7: 0 | H7: Marshall-Edgeworth | I7: ='Oculto PR'!AX6 -> 100.0
B8: 4 | C8: 0 | D8: 0 | E8: 0 | F8: 0 | H8: Valor | I8: ='Oculto PR'!AX10 -> 100.0
B9: 5 | C9: 0 | D9: 0 | E9: 0 | F9: 0 | H9: Por definición: Año Base = 100
B10: 6 | C10: 0 | D10: 0 | E10: 0 | F10: 0
B11: 7 | C11: 0 | D11: 0 | E11: 0 | F11: 0
B12: 8 | C12: 0 | D12: 0 | E12: 0 | F12: 0
B13: 9 | C13: 0 | D13: 0 | E13: 0 | F13: 0
B14: 10 | C14: 0 | D14: 0 | E14: 0 | F14: 0
B15: 11 | C15: 0 | D15: 0 | E15: 0 | F15: 0
B16: 12 | C16: 0 | D16: 0 | E16: 0 | F16: 0
B17: 13 | C17: 0 | D17: 0 | E17: 0 | F17: 0
B18: 14 | C18: 0 | D18: 0 | E18: 0 | F18: 0
B19: 15 | C19: 0 | D19: 0 | E19: 0 | F19: 0
B20: 16 | C20: 0 | D20: 0 | E20: 0 | F20: 0
B21: 17 | C21: 0 | D21: 0 | E21: 0 | F21: 0
B22: 18 | C22: 0 | D22: 0 | E22: 0 | F22: 0
B23: 19 | C23: 0 | D23: 0 | E23: 0 | F23: 0
B24: 20 | C24: 0 | D24: 0 | E24: 0 | F24: 0
B25: 21 | C25: 0 | D25: 0 | E25: 0 | F25: 0 | H25: Títulos
B26: 22 | C26: 0 | D26: 0 | E26: 0 | F26: 0 | H26: Resultados
B27: 23 | C27: 0 | D27: 0 | E27: 0 | F27: 0 | H27: Insertar datos
B28: 24 | C28: 0 | D28: 0 | E28: 0 | F28: 0
B29: 25 | C29: 0 | D29: 0 | E29: 0 | F29: 0
B30: 26 | C30: 0 | D30: 0 | E30: 0 | F30: 0
B31: 27 | C31: 0 | D31: 0 | E31: 0 | F31: 0
B32: 28 | C32: 0 | D32: 0 | E32: 0 | F32: 0
B33: 29 | C33: 0 | D33: 0 | E33: 0 | F33: 0
B34: 30 | C34: 0 | D34: 0 | E34: 0 | F34: 0
B35: 31 | C35: 0 | D35: 0 | E35: 0 | F35: 0
B36: 32 | C36: 0 | D36: 0 | E36: 0 | F36: 0
B37: 33 | C37: 0 | D37: 0 | E37: 0 | F37: 0
B38: 34 | C38: 0 | D38: 0 | E38: 0 | F38: 0
B39: 35 | C39: 0 | D39: 0 | E39: 0 | F39: 0
B40: 36 | C40: 0 | D40: 0 | E40: 0 | F40: 0
B41: 37 | C41: 0 | D41: 0 | E41: 0 | F41: 0
B42: 38 | C42: 0 | D42: 0 | E42: 0 | F42: 0
B43: 39 | C43: 0 | D43: 0 | E43: 0 | F43: 0
B44: 40 | C44: 0 | D44: 0 | E44: 0 | F44: 0
B45: 41 | C45: 0 | D45: 0 | E45: 0 | F45: 0
B46: 42 | C46: 0 | D46: 0 | E46: 0 | F46: 0
B47: 43 | C47: 0 | D47: 0 | E47: 0 | F47: 0
B48: 44 | C48: 0 | D48: 0 | E48: 0 | F48: 0
B49: 45 | C49: 0 | D49: 0 | E49: 0 | F49: 0
B50: 46 | C50: 0 | D50: 0 | E50: 0 | F50: 0
B51: 47 | C51: 0 | D51: 0 | E51: 0 | F51: 0
B52: 48 | C52: 0 | D52: 0 | E52: 0 | F52: 0
B53: 49 | C53: 0 | D53: 0 | E53: 0 | F53: 0
B54: 50 | C54: 0 | D54: 0 | E54: 0 | F54: 0

Sheet Oculto PR (hidden)
A1: RECTA PRESUPUESTARIA 1, CONOCIDO EL INGRESO | J1: RECTA PRESUPUESTARIA 2, CONOCIDO EL INGRESO | T1: RECTA PRESUPUESTARIA 1, DESCONOCIDO EL INGRESO | AC1: RECTA PRESUPUESTARIA 2, DESCONOCIDO EL INGRESO | AM1: año base | AO1: año de estudio | AQ1: LASPEYRES | AS1: PAASCHE | AU1: MARSHALL
A2: Unidades | B2: ponderador | C2: x1 | D2: x2 | E2: x1lin | G2: x2lin | J2: Unidades | K2: ponderador | L2: x1 | M2: x2 | N2: x1lin | P2: x2lin | T2: Unidades | U2: ponderador | V2: x1 | W2: x2 | X2: x1lin | Z2: x2lin | AC2: Unidades | AD2: ponderador | AE2: x1 | AF2: x2 | AG2: x1lin | AI2: x2lin | AM2: po | AN2: xo | AO2: pi | AP2: xi | AQ2: poxo | AR2: pixo | AS2: pixi | AT2: poxi | AU2: pi(xo+xi) | AV2: po(xo+xi)
A3: 1 | B3: 0 | C3: =$D$32*B3 -> 0 | D3: =$C$30+($D$30*C3) -> 10.00 | E3: =$D$27 -> 2.0 | F3: =B3*$F$27 -> 0 | G3: =$D$27*B3 -> 0 | H3: =$F$27 -> 8.0 | J3: 1 | K3: 0 | L3: =$M$32*K3 -> 0 | M3: =$L$30+($M$30*L3) -> 6.67 | N3: =$M$27 -> 8.0 | O3: =K3*$O$27 -> 0 | P3: =$M$27*K3 -> 0 | Q3: =$O$27 -> 4.0 | T3: 1 | U3: 0 | V3: =$W$32*U3 -> 0 | W3: =$V$30+($W$30*V3) -> 57.00 | X3: =$W$27 -> 15.0 | Y3: =U3*$Y$27 -> 0 | Z3: =$W$27*U3 -> 0 | AA3: =$Y$27 -> 30.0 | AC3: 1 | AD3: 0 | AE3: =$AF$32*AD3 -> 0 | AF3: =$AE$30+($AF$30*AE3) -> 50.58 | AG3: =$AF$27 -> 19.0 | AH3: =AD3*$AH$27 -> 0 | AI3: =$AF$27*AD3 -> 0 | AJ3: =$AH$27 -> 25.0 | AL3: 1 | AM3: =INDPREC!C5 -> 10 | AN3: =INDPREC!D5 -> 10 | AO3: =INDPREC!E5 -> 10 | AP3: =INDPREC!F5 -> 10 | AQ3: =AM3*AN3 -> 100 | AR3: =AO3*AN3 -> 100 | AS3: =AO3*AP3 -> 100 | AT3: =AM3*AP3 -> 100 | AU3: =AO3*(AN3+AP3) -> 200 | AV3: =AM3*(AN3+AP3) -> 200 | AW3: LASPEYRES | AX3: =AR53/AQ53*100 -> 100
A4: 2 | B4: 0.05 | C4: =$D$32*B4 -> 0.50 | D4: =$C$30+($D$30*C4) -> 9.50 | E4: =$D$27 -> 2.0 | F4: =B4*$F$27 -> 0.40 | G4: =$D$27*B4 -> 0.10 | H4: =$F$27 -> 8.0 | J4: 2 | K4: 0.05 | L4: =$M$32*K4 -> 1.00 | M4: =$L$30+($M$30*L4) -> 6.33 | N4: =$M$27 -> 8.0 | O4: =K4*$O$27 -> 0.20 | P4: =$M$27*K4 -> 0.40 | Q4: =$O$27 -> 4.0 | T4: 0.95 | U4: 0.05 | V4: =$W$32*U4 -> 1.58 | W4: =$V$30+($W$30*V4) -> 54.15 | X4: =$W$27 -> 15.0 | Y4: =U4*$Y$27 -> 1.50 | Z4: =$W$27*U4 -> 0.75 | AA4: =$Y$27 -> 30.0 | AC4: 2 | AD4: 0.05 | AE4: =$AF$32*AD4 -> 1.88 | AF4: =$AE$30+($AF$30*AE4) -> 48.05 | AG4: =$AF$27 -> 19.0 | AH4: =AD4*$AH$27 -> 1.25 | AI4: =$AF$27*AD4 -> 0.95 | AJ4: =$AH$27 -> 25.0 | AL4: 2 | AM4: =INDPREC!C6 -> 0 | AN4: =INDPREC!D6 -> 0 | AO4: =INDPREC!E6 -> 0 | AP4: =INDPREC!F6 -> 0 | AQ4: =AM4*AN4 -> 0 | AR4: =AO4*AN4 -> 0 | AS4: =AO4*AP4 -> 0 | AT4: =AM4*AP4 -> 0 | AU4: =AO4*(AN4+AP4) -> 0 | AV4: =AM4*(AN4+AP4) -> 0 | AW4: PAASCHE | AX4: =AS53/AT53*100 -> 100
A5: 3 | B5: 0.10 | C5: 1.00 | D5: 9.00 | E5: 2.0 | F5: 0.80 | G5: 0.20 | H5: 8.0 | J5: 3 | K5: 0.10 | L5: 2.00 | M5: 6.00 | N5: 8.0 | O5: 0.40 | P5: 0.80 | Q5: 4.0 | T5: 0.9 | U5: 0.10 | V5: 3.17 | W5: 51.30 | X5: 15.0 | Y5: 3.00 | Z5: 1.50 | AA5: 30.0 | AC5: 3 | AD5: 0.10 | AE5: 3.76 | AF5: 45.52 | AG5: 19.0 | AH5: 2.50 | AI5: 1.90 | AJ5: 25.0 | AL5: 3 | AM5: =INDPREC!C7 -> 0 | AN5: =INDPREC!D7 -> 0 | AO5: =INDPREC!E7 -> 0 | AP5: =INDPREC!F7 -> 0 | AQ5: =AM5*AN5 -> 0 | AR5: =AO5*AN5 -> 0 | AS5: 0 | AT5: 0 | AU5: 0 | AV5: 0 | AW5: FISHER | AX5: =(AX4*AX3)^(1/2) -> 100
A6: 4 | B6: 0.15 | C6: 1.50 | D6: 8.50 | E6: 2.0 | F6: 1.20 | G6: 0.30 | H6: 8.0 | J6: 4 | K6: 0.15 | L6: 3.00 | M6: 5.67 | N6: 8.0 | O6: 0.60 | P6: 1.20 | Q6: 4.0 | T6: 0.85 | U6: 0.15 | V6: 4.75 | W6: 48.45 | X6: 15.0 | Y6: 4.50 | Z6: 2.25 | AA6: 30.0 | AC6: 4 | AD6: 0.15 | AE6: 5.64 | AF6: 42.99 | AG6: 19.0 | AH6: 3.75 | AI6: 2.85 | AJ6: 25.0 | AL6: 4 | AM6: =INDPREC!C8 -> 0 | AN6: =INDPREC!D8 -> 0 | AO6: =INDPREC!E8 -> 0 | AP6: =INDPREC!F8 -> 0 | AQ6: =AM6*AN6 -> 0 | AR6: =AO6*AN6 -> 0 | AS6: 0 | AT6: 0 | AU6: 0 | AV6: 0 | AW6: MARSHALL-EDGEWORTH | AX6: =AU53/AV53*100 -> 100
A7: 5 | B7: 0.20 | C7: 2.00 | D7: 8.00 | E7: 2.0 | F7: 1.60 | G7: 0.40 | H7: 8.0 | J7: 5 | K7: 0.20 | L7: 4.00 | M7: 5.33 | N7: 8.0 | O7: 0.80 | P7: 1.60 | Q7: 4.0 | T7: 0.8 | U7: 0.20 | V7: 6.33 | W7: 45.60 | X7: 15.0 | Y7: 6.00 | Z7: 3.00 | AA7: 30.0 | AC7: 5 | AD7: 0.20 | AE7: 7.51 | AF7: 40.46 | AG7: 19.0 | AH7: 5.00 | AI7: 3.80 | AJ7: 25.0 | AL7: 5 | AM7: =INDPREC!C9 -> 0 | AN7: =INDPREC!D9 -> 0 | AO7: =INDPREC!E9 -> 0 | AP7: =INDPREC!F9 -> 0 | AQ7: 0 | AR7: 0 | AS7: 0 | AT7: 0 | AU7: 0 | AV7: 0 | AW7: VALOR | AX7: =AS53/AQ53*100 -> 100
A8: 6 | B8: 0.25 | C8: 2.50 | D8: 7.50 | E8: 2.0 | F8: 2.00 | G8: 0.50 | H8: 8.0 | J8: 6 | K8: 0.25 | L8: 5.00 | M8: 5.00 | N8: 8.0 | O8: 1.00 | P8: 2.00 | Q8: 4.0 | T8: 0.75 | U8: 0.25 | V8: 7.92 | W8: 42.75 | X8: 15.0 | Y8: 7.50 | Z8: 3.75 | AA8: 30.0 | AC8: 6 | AD8: 0.25 | AE8: 9.39 | AF8: 37.93 | AG8: 19.0 | AH8: 6.25 | AI8: 4.75 | AJ8: 25.0 | AL8: 6 | AM8: =INDPREC!C10 -> 0 | AN8: =INDPREC!D10 -> 0 | AO8: =INDPREC!E10 -> 0 | AP8: =INDPREC!F10 -> 0 | AQ8: 0 | AR8: 0 | AS8: 0 | AT8: 0 | AU8: 0 | AV8: 0 | AW8: AÑO BASE | AX8: 100
A9: 7 | B9: 0.30 | C9: 3.00 | D9: 7.00 | E9: 2.0 | F9: 2.40 | G9: 0.60 | H9: 8.0 | J9: 7 | K9: 0.30 | L9: 6.00 | M9: 4.67 | N9: 8.0 | O9: 1.20 | P9: 2.40 | Q9: 4.0 | T9: 0.7 | U9: 0.30 | V9: 9.50 | W9: 39.90 | X9: 15.0 | Y9: 9.00 | Z9: 4.50 | AA9: 30.0 | AC9: 7 | AD9: 0.30 | AE9: 11.27 | AF9: 35.40 | AG9: 19.0 | AH9: 7.50 | AI9: 5.70 | AJ9: 25.0 | AL9: 7 | AM9: =INDPREC!C11 -> 0 | AN9: =INDPREC!D11 -> 0 | AO9: =INDPREC!E11 -> 0 | AP9: =INDPREC!F11 -> 0 | AQ9: 0 | AR9: 0 | AS9: 0 | AT9: 0 | AU9: 0 | AV9: 0
A10: 8 | B10: 0.35 | C10: 3.50 | D10: 6.50 | E10: 2.0 | F10: 2.80 | G10: 0.70 | H10: 8.0 | J10: 8 | K10: 0.35 | L10: 7.00 | M10: 4.33 | N10: 8.0 | O10: 1.40 | P10: 2.80 | Q10: 4.0 | T10: 0.65 | U10: 0.35 | V10: 11.08 | W10: 37.05 | X10: 15.0 | Y10: 10.50 | Z10: 5.25 | AA10: 30.0 | AC10: 8 | AD10: 0.35 | AE10: 13.15 | AF10: 32.88 | AG10: 19.0 | AH10: 8.75 | AI10: 6.65 | AJ10: 25.0 | AL10: 8 | AM10: =INDPREC!C12 -> 0 | AN10: =INDPREC!D12 -> 0 | AO10: =INDPREC!E12 -> 0 | AP10: =INDPREC!F12 -> 0 | AQ10: 0 | AR10: 0 | AS10: 0 | AT10: 0 | AU10: 0 | AV10: 0 | AW10: VALOR | AX10: =AX7 -> 100
A11: 9 | B11: 0.40 | C11: 4.00 | D11: 6.00 | E11: 2.0 | F11: 3.20 | G11: 0.80 | H11: 8.0 | J11: 9 | K11: 0.40 | L11: 8.00 | M11: 4.00 | N11: 8.0 | O11: 1.60 | P11: 3.20 | Q11: 4.0 | T11: 0.6 | U11: 0.40 | V11: 12.67 | W11: 34.20 | X11: 15.0 | Y11: 12.00 | Z11: 6.00 | AA11: 30.0 | AC11: 9 | AD11: 0.40 | AE11: 15.03 | AF11: 30.35 | AG11: 19.0 | AH11: 10.00 | AI11: 7.60 | AJ11: 25.0 | AL11: 9 | AM11: =INDPREC!C13 -> 0 | AN11: =INDPREC!D13 -> 0 | AO11: =INDPREC!E13 -> 0 | AP11: =INDPREC!F13 -> 0 | AQ11: 0 | AR11: 0 | AS11: 0 | AT11: 0 | AU11: 0 | AV11: 0 | AW11: MARSHALL-EDGEWORTH | AX11: =AX6 -> 100
A12: 10 | B12: 0.45 | C12: 4.50 | D12: 5.50 | E12: 2.0 | F12: 3.60 | G12: 0.90 | H12: 8.0 | J12: 10 | K12: 0.45 | L12: 9.00 | M12: 3.67 | N12: 8.0 | O12: 1.80 | P12: 3.60 | Q12: 4.0 | T12: 0.55 | U12: 0.45 | V12: 14.25 | W12: 31.35 | X12: 15.0 | Y12: 13.50 | Z12: 6.75 | AA12: 30.0 | AC12: 10 | AD12: 0.45 | AE12: 16.91 | AF12: 27.82 | AG12: 19.0 | AH12: 11.25 | AI12: 8.55 | AJ12: 25.0 | AL12: 10 | AM12: =INDPREC!C14 -> 0 | AN12: =INDPREC!D14 -> 0 | AO12: =INDPREC!E14 -> 0 | AP12: =INDPREC!F14 -> 0 | AQ12: 0 | AR12: 0 | AS12: 0 | AT12: 0 | AU12: 0 | AV12: 0 | AW12: FISHER | AX12: =AX5 -> 100
A13: 11 | B13: 0.50 | C13: 5.00 | D13: 5.00 | E13: 2.0 | F13: 4.00 | G13: 1.00 | H13: 8.0 | J13: 11 | K13: 0.50 | L13: 10.00 | M13: 3.33 | N13: 8.0 | O13: 2.00 | P13: 4.00 | Q13: 4.0 | T13: 0.5 | U13: 0.50 | V13: 15.83 | W13: 28.50 | X13: 15.0 | Y13: 15.00 | Z13: 7.50 | AA13: 30.0 | AC13: 11 | AD13: 0.50 | AE13: 18.79 | AF13: 25.29 | AG13: 19.0 | AH13: 12.50 | AI13: 9.50 | AJ13: 25.0 | AL13: 11 | AM13: =INDPREC!C15 -> 0 | AN13: =INDPREC!D15 -> 0 | AO13: =INDPREC!E15 -> 0 | AP13: =INDPREC!F15 -> 0 | AQ13: 0 | AR13: 0 | AS13: 0 | AT13: 0 | AU13: 0 | AV13: 0 | AW13: PAASCHE | AX13: =AX4 -> 100
A14: 12 | B14: 0.55 | C14: 5.50 | D14: 4.50 | E14: 2.0 | F14: 4.40 | G14: 1.10 | H14: 8.0 | J14: 12 | K14: 0.55 | L14: 11.00 | M14: 3.00 | N14: 8.0 | O14: 2.20 | P14: 4.40 | Q14: 4.0 | T14: 0.45 | U14: 0.55 | V14: 17.42 | W14: 25.65 | X14: 15.0 | Y14: 16.50 | Z14: 8.25 | AA14: 30.0 | AC14: 12 | AD14: 0.55 | AE14: 20.66 | AF14: 22.76 | AG14: 19.0 | AH14: 13.75 | AI14: 10.45 | AJ14: 25.0 | AL14: 12 | AM14: =INDPREC!C16 -> 0 | AN14: =INDPREC!D16 -> 0 | AO14: =INDPREC!E16 -> 0 | AP14: =INDPREC!F16 -> 0 | AQ14: 0 | AR14: 0 | AS14: 0 | AT14: 0 | AU14: 0 | AV14: 0 | AW14: LASPEYRES | AX14: =AX3 -> 100
A15: 13 | B15: 0.60 | C15: 6.00 | D15: 4.00 | E15: 2.0 | F15: 4.80 | G15: 1.20 | H15: 8.0 | J15: 13 | K15: 0.60 | L15: 12.00 | M15: 2.67 | N15: 8.0 | O15: 2.40 | P15: 4.80 | Q15: 4.0 | T15: 0.4 | U15: 0.60 | V15: 19.00 | W15: 22.80 | X15: 15.0 | Y15: 18.00 | Z15: 9.00 | AA15: 30.0 | AC15: 13 | AD15: 0.60 | AE15: 22.54 | AF15: 20.23 | AG15: 19.0 | AH15: 15.00 | AI15: 11.40 | AJ15: 25.0 | AL15: 13 | AM15: =INDPREC!C17 -> 0 | AN15: =INDPREC!D17 -> 0 | AO15: =INDPREC!E17 -> 0 | AP15: =INDPREC!F17 -> 0 | AQ15: 0 | AR15: 0 | AS15: 0 | AT15: 0 | AU15: 0 | AV15: 0 | AW15: AÑO BASE | AX15: =AX8 -> 100
A16: 14 | B16: 0.65 | C16: 6.50 | D16: 3.50 | E16: 2.0 | F16: 5.20 | G16: 1.30 | H16: 8.0 | J16: 14 | K16: 0.65 | L16: 13.00 | M16: 2.33 | N16: 8.0 | O16: 2.60 | P16: 5.20 | Q16: 4.0 | T16: 0.35 | U16: 0.65 | V16: 20.58 | W16: 19.95 | X16: 15.0 | Y16: 19.50 | Z16: 9.75 | AA16: 30.0 | AC16: 14 | AD16: 0.65 | AE16: 24.42 | AF16: 17.70 | AG16: 19.0 | AH16: 16.25 | AI16: 12.35 | AJ16: 25.0 | AL16: 14 | AM16: =INDPREC!C18 -> 0 | AN16: =INDPREC!D18 -> 0 | AO16: =INDPREC!E18 -> 0 | AP16: =INDPREC!F18 -> 0 | AQ16: 0 | AR16: 0 | AS16: 0 | AT16: 0 | AU16: 0 | AV16: 0
A17: 15 | B17: 0.70 | C17: 7.00 | D17: 3.00 | E17: 2.0 | F17: 5.60 | G17: 1.40 | H17: 8.0 | J17: 15 | K17: 0.70 | L17: 14.00 | M17: 2.00 | N17: 8.0 | O17: 2.80 | P17: 5.60 | Q17: 4.0 | T17: 0.3 | U17: 0.70 | V17: 22.17 | W17: 17.10 | X17: 15.0 | Y17: 21.00 | Z17: 10.50 | AA17: 30.0 | AC17: 15 | AD17: 0.70 | AE17: 26.30 | AF17: 15.17 | AG17: 19.0 | AH17: 17.50 | AI17: 13.30 | AJ17: 25.0 | AL17: 15 | AM17: =INDPREC!C19 -> 0 | AN17: =INDPREC!D19 -> 0 | AO17: =INDPREC!E19 -> 0 | AP17: =INDPREC!F19 -> 0 | AQ17: 0 | AR17: 0 | AS17: 0 | AT17: 0 | AU17: 0 | AV17: 0
A18: 16 | B18: 0.75 | C18: 7.50 | D18: 2.50 | E18: 2.0 | F18: 6.00 | G18: 1.50 | H18: 8.0 | J18: 16 | K18: 0.75 | L18: 15.00 | M18: 1.67 | N18: 8.0 | O18: 3.00 | P18: 6.00 | Q18: 4.0 | T18: 0.25 | U18: 0.75 | V18: 23.75 | W18: 14.25 | X18: 15.0 | Y18: 22.50 | Z18: 11.25 | AA18: 30.0 | AC18: 16 | AD18: 0.75 | AE18: 28.18 | AF18: 12.64 | AG18: 19.0 | AH18: 18.75 | AI18: 14.25 | AJ18: 25.0 | AL18: 16 | AM18: =INDPREC!C20 -> 0 | AN18: =INDPREC!D20 -> 0 | AO18: =INDPREC!E20 -> 0 | AP18: =INDPREC!F20 -> 0 | AQ18: 0 | AR18: 0 | AS18: 0 | AT18: 0 | AU18: 0 | AV18: 0
A19: 17 | B19: 0.80 | C19: 8.00 | D19: 2.00 | E19: 2.0 | F19: 6.40 | G19: 1.60 | H19: 8.0 | J19: 17 | K19: 0.80 | L19: 16.00 | M19: 1.33 | N19: 8.0 | O19: 3.20 | P19: 6.40 | Q19: 4.0 | T19: 0.2 | U19: 0.80 | V19: 25.33 | W19: 11.40 | X19: 15.0 | Y19: 24.00 | Z19: 12.00 | AA19: 30.0 | AC19: 17 | AD19: 0.80 | AE19: 30.06 | AF19: 10.12 | AG19: 19.0 | AH19: 20.00 | AI19: 15.20 | AJ19: 25.0 | AL19: 17 | AM19: =INDPREC!C21 -> 0 | AN19: =INDPREC!D21 -> 0 | AO19: =INDPREC!E21 -> 0 | AP19: =INDPREC!F21 -> 0 | AQ19: 0 | AR19: 0 | AS19: 0 | AT19: 0 | AU19: 0 | AV19: 0
A20: 18 | B20: 0.85 | C20: 8.50 | D20: 1.50 | E20: 2.0 | F20: 6.80 | G20: 1.70 | H20: 8.0 | J20: 18 | K20: 0.85 | L20: 17.00 | M20: 1.00 | N20: 8.0 | O20: 3.40 | P20: 6.80 | Q20: 4.0 | T20: 0.15 | U20: 0.85 | V20: 26.92 | W20: 8.55 | X20: 15.0 | Y20: 25.50 | Z20: 12.75 | AA20: 30.0 | AC20: 18 | AD20: 0.85 | AE20: 31.94 | AF20: 7.59 | AG20: 19.0 | AH20: 21.25 | AI20: 16.15 | AJ20: 25.0 | AL20: 18 | AM20: =INDPREC!C22 -> 0 | AN20: =INDPREC!D22 -> 0 | AO20: =INDPREC!E22 -> 0 | AP20: =INDPREC!F22 -> 0 | AQ20: 0 | AR20: 0 | AS20: 0 | AT20: 0 | AU20: 0 | AV20: 0
A21: 19 | B21: 0.90 | C21: 9.00 | D21: 1.00 | E21: 2.0 | F21: 7.20 | G21: 1.80 | H21: 8.0 | J21: 19 | K21: 0.90 | L21: 18.00 | M21: 0.67 | N21: 8.0 | O21: 3.60 | P21: 7.20 | Q21: 4.0 | T21: 0.1 | U21: 0.90 | V21: 28.50 | W21: 5.70 | X21: 15.0 | Y21: 27.00 | Z21: 13.50 | AA21: 30.0 | AC21: 19 | AD21: 0.90 | AE21: 33.81 | AF21: 5.06 | AG21: 19.0 | AH21: 22.50 | AI21: 17.10 | AJ21: 25.0 | AL21: 19 | AM21: =INDPREC!C23 -> 0 | AN21: =INDPREC!D23 -> 0 | AO21: =INDPREC!E23 -> 0 | AP21: =INDPREC!F23 -> 0 | AQ21: 0 | AR21: 0 | AS21: 0 | AT21: 0 | AU21: 0 | AV21: 0
A22: 20 | B22: 0.95 | C22: 9.50 | D22: 0.50 | E22: 2.0 | F22: 7.60 | G22: 1.90 | H22: 8.0 | J22: 20 | K22: 0.95 | L22: 19.00 | M22: 0.33 | N22: 8.0 | O22: 3.80 | P22: 7.60 | Q22: 4.0 | T22: 0.05 | U22: 0.95 | V22: 30.08 | W22: 2.85 | X22: 15.0 | Y22: 28.50 | Z22: 14.25 | AA22: 30.0 | AC22: 20 | AD22: 0.95 | AE22: 35.69 | AF22: 2.53 | AG22: 19.0 | AH22: 23.75 | AI22: 18.05 | AJ22: 25.0 | AL22: 20 | AM22: =INDPREC!C24 -> 0 | AN22: =INDPREC!D24 -> 0 | AO22: =INDPREC!E24 -> 0 | AP22: =INDPREC!F24 -> 0 | AQ22: 0 | AR22: 0 | AS22: 0 | AT22: 0 | AU22: 0 | AV22: 0
A23: 21 | B23: 1.00 | C23: 10.00 | D23: 0 | E23: 2.0 | F23: 8.00 | G23: 2.00 | H23: 8.0 | J23: 21 | K23: 1.00 | L23: 20.00 | M23: 0 | N23: 8.0 | O23: 4.00 | P23: 8.00 | Q23: 4.0 | T23: 0 | U23: 1.00 | V23: 31.67 | W23: 0 | X23: 15.0 | Y23: 30.00 | Z23: 15.00 | AA23: 30.0 | AC23: 21 | AD23: 1.00 | AE23: 37.57 | AF23: 0 | AG23: 19.0 | AH23: 25.00 | AI23: 19.00 | AJ23: 25.0 | AL23: 21 | AM23: =INDPREC!C25 -> 0 | AN23: =INDPREC!D25 -> 0 | AO23: =INDPREC!E25 -> 0 | AP23: =INDPREC!F25 -> 0 | AQ23: 0 | AR23: 0 | AS23: 0 | AT23: 0 | AU23: 0 | AV23: 0
AL24: 22 | AM24: =INDPREC!C26 -> 0 | AN24: =INDPREC!D26 -> 0 | AO24: =INDPREC!E26 -> 0 | AP24: =INDPREC!F26 -> 0 | AQ24: 0 | AR24: 0 | AS24: 0 | AT24: 0 | AU24: 0 | AV24: 0
AL25: 23 | AM25: =INDPREC!C27 -> 0 | AN25: =INDPREC!D27 -> 0 | AO25: =INDPREC!E27 -> 0 | AP25: =INDPREC!F27 -> 0 | AQ25: 0 | AR25: 0 | AS25: 0 | AT25: 0 | AU25: 0 | AV25: 0
B26: m | C26: p1 | D26: x1 | E26: p2 | F26: x2 | K26: m | L26: p1 | M26: x1 | N26: p2 | O26: x2 | U26: m | V26: p1 | W26: x1 | X26: p2 | Y26: x2 | AD26: m | AE26: p1 | AF26: x1 | AG26: p2 | AH26: x2 | AL26: 24 | AM26: =INDPREC!C28 -> 0 | AN26: =INDPREC!D28 -> 0 | AO26: =INDPREC!E28 -> 0 | AP26: =INDPREC!F28 -> 0 | AQ26: 0 | AR26: 0 | AS26: 0 | AT26: 0 | AU26: 0 | AV26: 0
B27: =PREFREVCONM!B5 -> 100.0 | C27: =PREFREVCONM!C5 -> 10.0 | D27: =PREFREVCONM!D5 -> 2.0 | E27: =PREFREVCONM!E5 -> 10.0 | F27: =B30 -> 8.0 | K27: =PREFREVCONM!B17 -> 100.0 | L27: =PREFREVCONM!C17 -> 5.0 | M27: =PREFREVCONM!D17 -> 8.0 | N27: =PREFREVCONM!E17 -> 15.0 | O27: =K30 -> 4.0 | U27: =V27*W27+X27*Y27 -> 2,850.0 | V27: =PREFREVSINM!C5 -> 90.0 | W27: =PREFREVSINM!D5 -> 15.0 | X27: =PREFREVSINM!E5 -> 50.0 | Y27: =PREFREVSINM!F5 -> 30.0 | AD27: =AE27*AF27+AG27*AH27 -> 2,630.0 | AE27: =PREFREVSINM!C17 -> 70.0 | AF27: =PREFREVSINM!D17 -> 19.0 | AG27: =PREFREVSINM!E17 -> 52.0 | AH27: =PREFREVSINM!F17 -> 25.0 | AL27: 25 | AM27: =INDPREC!C29 -> 0 | AN27: =INDPREC!D29 -> 0 | AO27: =INDPREC!E29 -> 0 | AP27: =INDPREC!F29 -> 0 | AQ27: 0 | AR27: 0 | AS27: 0 | AT27: 0 | AU27: 0 | AV27: 0
AL28: 26 | AM28: =INDPREC!C30 -> 0 | AN28: =INDPREC!D30 -> 0 | AO28: =INDPREC!E30 -> 0 | AP28: =INDPREC!F30 -> 0 | AQ28: 0 | AR28: 0 | AS28: 0 | AT28: 0 | AU28: 0 | AV28: 0
B29: x2 | C29: b0 | D29: -B1 | E29: x1 | K29: x2 | L29: b0 | M29: -B1 | N29: x1 | U29: x2 | V29: b0 | W29: -B1 | X29: x1 | AD29: x2 | AE29: b0 | AF29: -B1 | AG29: x1 | AL29: 27 | AM29: =INDPREC!C31 -> 0 | AN29: =INDPREC!D31 -> 0 | AO29: =INDPREC!E31 -> 0 | AP29: =INDPREC!F31 -> 0 | AQ29: 0 | AR29: 0 | AS29: 0 | AT29: 0 | AU29: 0 | AV29: 0
B30: =C30+(D30*D27) -> 8.0 | C30: =B27/E27 -> 10.0 | D30: =C27/E27*-1 -> (1.0) | E30: =D27 -> 2.0 | K30: =L30+(M30*M27) -> 4.0 | L30: =K27/N27 -> 6.7 | M30: =L27/N27*-1 -> (0.3) | N30: =M27 -> 8.0 | U30: =Y27 -> 30.0 | V30: =U27/X27 -> 57.0 | W30: =V27/X27*-1 -> (1.8) | X30: =W27 -> 15.0 | AD30: =AH27 -> 25.0 | AE30: =AD27/AG27 -> 50.6 | AF30: =AE27/AG27*-1 -> (1.3) | AG30: =AF27 -> 19.0 | AL30: 28 | AM30: =INDPREC!C32 -> 0 | AN30: =INDPREC!D32 -> 0 | AO30: =INDPREC!E32 -> 0 | AP30: =INDPREC!F32 -> 0 | AQ30: 0 | AR30: 0 | AS30: 0 | AT30: 0 | AU30: 0 | AV30: 0
AL31: 29 | AM31: =INDPREC!C33 -> 0 | AN31: =INDPREC!D33 -> 0 | AO31: =INDPREC!E33 -> 0 | AP31: =INDPREC!F33 -> 0 | AQ31: 0 | AR31: 0 | AS31: 0 | AT31: 0 | AU31: 0 | AV31: 0
B32: Máxima cantidad de x1 | D32: =B27/C27 -> 10.0 | K32: Máxima cantidad de x1 | M32: =K27/L27 -> 20.0 | U32: Máxima cantidad de x1 | W32: =U27/V27 -> 31.7 | AD32: Máxima cantidad de x1 | AF32: =AD27/AE27 -> 37.6 | AL32: 30 | AM32: =INDPREC!C34 -> 0 | AN32: =INDPREC!D34 -> 0 | AO32: =INDPREC!E34 -> 0 | AP32: =INDPREC!F34 -> 0 | AQ32: 0 | AR32: 0 | AS32: 0 | AT32: 0 | AU32: 0 | AV32: 0
B33: Máxima cantidad de x2 | D33: =B27/E27 -> 10.0 | K33: Máxima cantidad de x2 | M33: =K27/N27 -> 6.7 | U33: Máxima cantidad de x2 | W33: =U27/X27 -> 57.0 | AD33: Máxima cantidad de x2 | AF33: =AD27/AG27 -> 50.6 | AL33: 31 | AM33: =INDPREC!C35 -> 0 | AN33: =INDPREC!D35 -> 0 | AO33: =INDPREC!E35 -> 0 | AP33: =INDPREC!F35 -> 0 | AQ33: 0 | AR33: 0 | AS33: 0 | AT33: 0 | AU33: 0 | AV33: 0
B34: Precio Relativo (<0) | D34: =D30 -> (1.0) | K34: Precio Relativo (<0) | M34: =M30 -> (0.3) | U34: Precio Relativo (<0) | W34: =V27/X27*-1 -> (1.8) | AD34: Precio Relativo (<0) | AF34: =AE27/AG27*-1 -> (1.3) | AL34: 32 | AM34: =INDPREC!C36 -> 0 | AN34: =INDPREC!D36 -> 0 | AO34: =INDPREC!E36 -> 0 | AP34: =INDPREC!F36 -> 0 | AQ34: 0 | AR34: 0 | AS34: 0 | AT34: 0 | AU34: 0 | AV34: 0
AL35: 33 | AM35: =INDPREC!C37 -> 0 | AN35: =INDPREC!D37 -> 0 | AO35: =INDPREC!E37 -> 0 | AP35: =INDPREC!F37 -> 0 | AQ35: =AM35*AN35 -> 0 | AR35: 0 | AS35: 0 | AT35: 0 | AU35: 0 | AV35: 0
AL36: 34 | AM36: =INDPREC!C38 -> 0 | AN36: =INDPREC!D38 -> 0 | AO36: =INDPREC!E38 -> 0 | AP36: =INDPREC!F38 -> 0 | AQ36: 0 | AR36: 0 | AS36: 0 | AT36: 0 | AU36: 0 | AV36: 0
AL37: 35 | AM37: =INDPREC!C39 -> 0 | AN37: =INDPREC!D39 -> 0 | AO37: =INDPREC!E39 -> 0 | AP37: =INDPREC!F39 -> 0 | AQ37: 0 | AR37: 0 | AS37: 0 | AT37: 0 | AU37: 0 | AV37: 0
AL38: 36 | AM38: =INDPREC!C40 -> 0 | AN38: =INDPREC!D40 -> 0 | AO38: =INDPREC!E40 -> 0 | AP38: =INDPREC!F40 -> 0 | AQ38: 0 | AR38: 0 | AS38: 0 | AT38: 0 | AU38: 0 | AV38: 0
AL39: 37 | AM39: =INDPREC!C41 -> 0 | AN39: =INDPREC!D41 -> 0 | AO39: =INDPREC!E41 -> 0 | AP39: =INDPREC!F41 -> 0 | AQ39: 0 | AR39: 0 | AS39: 0 | AT39: 0 | AU39: 0 | AV39: 0
AL40: 38 | AM40: =INDPREC!C42 -> 0 | AN40: =INDPREC!D42 -> 0 | AO40: =INDPREC!E42 -> 0 | AP40: =INDPREC!F42 -> 0 | AQ40: 0 | AR40: 0 | AS40: 0 | AT40: 0 | AU40: 0 | AV40: 0
AL41: 39 | AM41: =INDPREC!C43 -> 0 | AN41: =INDPREC!D43 -> 0 | AO41: =INDPREC!E43 -> 0 | AP41: =INDPREC!F43 -> 0 | AQ41: 0 | AR41: 0 | AS41: 0 | AT41: 0 | AU41: 0 | AV41: 0
AL42: 40 | AM42: =INDPREC!C44 -> 0 | AN42: =INDPREC!D44 -> 0 | AO42: =INDPREC!E44 -> 0 | AP42: =INDPREC!F44 -> 0 | AQ42: =AM42*AN42 -> 0 | AR42: =AO42*AN42 -> 0 | AS42: =AO42*AP42 -> 0 | AT42: =AM42*AP42 -> 0 | AU42: 0 | AV42: 0
AL43: 41 | AM43: =INDPREC!C45 -> 0 | AN43: =INDPREC!D45 -> 0 | AO43: =INDPREC!E45 -> 0 | AP43: =INDPREC!F45 -> 0 | AQ43: 0 | AR43: 0 | AS43: 0 | AT43: 0 | AU43: 0 | AV43: 0
AL44: 42 | AM44: =INDPREC!C46 -> 0 | AN44: =INDPREC!D46 -> 0 | AO44: =INDPREC!E46 -> 0 | AP44: =INDPREC!F46 -> 0 | AQ44: 0 | AR44: 0 | AS44: 0 | AT44: 0 | AU44: 0 | AV44: 0
AL45: 43 | AM45: =INDPREC!C47 -> 0 | AN45: =INDPREC!D47 -> 0 | AO45: =INDPREC!E47 -> 0 | AP45: =INDPREC!F47 -> 0 | AQ45: 0 | AR45: 0 | AS45: 0 | AT45: 0 | AU45: 0 | AV45: 0
AL46: 44 | AM46: =INDPREC!C48 -> 0 | AN46: =INDPREC!D48 -> 0 | AO46: =INDPREC!E48 -> 0 | AP46: =INDPREC!F48 -> 0 | AQ46: 0 | AR46: 0 | AS46: 0 | AT46: 0 | AU46: 0 | AV46: 0
AL47: 45 | AM47: =INDPREC!C49 -> 0 | AN47: =INDPREC!D49 -> 0 | AO47: =INDPREC!E49 -> 0 | AP47: =INDPREC!F49 -> 0 | AQ47: 0 | AR47: 0 | AS47: 0 | AT47: 0 | AU47: 0 | AV47: 0
AL48: 46 | AM48: =INDPREC!C50 -> 0 | AN48: =INDPREC!D50 -> 0 | AO48: =INDPREC!E50 -> 0 | AP48: =INDPREC!F50 -> 0 | AQ48: 0 | AR48: 0 | AS48: 0 | AT48: 0 | AU48: 0 | AV48: 0
AL49: 47 | AM49: =INDPREC!C51 -> 0 | AN49: =INDPREC!D51 -> 0 | AO49: =INDPREC!E51 -> 0 | AP49: =INDPREC!F51 -> 0 | AQ49: 0 | AR49: 0 | AS49: 0 | AT49: 0 | AU49: 0 | AV49: 0
AL50: 48 | AM50: =INDPREC!C52 -> 0 | AN50: =INDPREC!D52 -> 0 | AO50: =INDPREC!E52 -> 0 | AP50: =INDPREC!F52 -> 0 | AQ50: =AM50*AN50 -> 0 | AR50: =AO50*AN50 -> 0 | AS50: =AO50*AP50 -> 0 | AT50: =AM50*AP50 -> 0 | AU50: 0 | AV50: 0
AL51: 49 | AM51: =INDPREC!C53 -> 0 | AN51: =INDPREC!D53 -> 0 | AO51: =INDPREC!E53 -> 0 | AP51: =INDPREC!F53 -> 0 | AQ51: =AM51*AN51 -> 0 | AR51: =AO51*AN51 -> 0 | AS51: =AO51*AP51 -> 0 | AT51: =AM51*AP51 -> 0 | AU51: 0 | AV51: 0
AL52: 50 | AM52: =INDPREC!C54 -> 0 | AN52: =INDPREC!D54 -> 0 | AO52: =INDPREC!E54 -> 0 | AP52: =INDPREC!F54 -> 0 | AQ52: =AM52*AN52 -> 0 | AR52: =AO52*AN52 -> 0 | AS52: =AO52*AP52 -> 0 | AT52: =AM52*AP52 -> 0 | AU52: 0 | AV52: 0
AQ53: =SUM(AQ3:AQ52) -> 100 | AR53: 100 | AS53: 100 | AT53: 100 | AU53: 200 | AV53: 200
